bitfinex/quotes_ETHUSD_20240902
["timestamp","ask_amount","ask_price","bid_price","bid_amount"]
[1725247321174,2.03467,2457.4,2457.1,2.2738]
[1725247323136,2.46075736,2457.5,2457.1,3.24418]
[1725247323792,2.03468,2457.4,2457.1,3.24418]
[1725247324131,2.03468,2457.4,2456.9,7.43]
[1725247324132,2.03483,2457.2,2456.5,2.3671]
[1725247324279,3.0,2457.4,2456.1,2.3671]
[1725247324280,2.0355,2456.4,2456.1,2.3671]
[1725247324981,2.0355,2456.4,2456.1,2.60381]
[1725247325386,2.03533,2456.6,2456.1,2.60381]
[1725247325596,2.03542,2456.5,2456.1,2.60381]
[1725247328333,2.03551,2456.4,2456.1,2.3671]
[1725247328539,2.03558,2456.3,2455.8,2.3382]
[1725247328839,2.03575,2456.1,2455.8,2.3382]
[1725247329426,2.03575,2456.1,2455.5,2.3382]
[1725247329651,2.03599,2455.8,2455.5,3.4096838]
[1725247329795,2.03587,2456.0,2455.5,3.49112223]
[1725247329994,2.03587,2456.0,2455.5,3.4096838]
[1725247330195,2.03606,2455.8,2455.5,3.4096838]
[1725247330511,2.03606,2455.8,2455.5,2.41964084]
[1725247331446,2.03594,2455.9,2455.5,2.3382]
[1725247332517,2.03565,2456.3,2455.6,0.08144084]
[1725247332747,2.03565,2456.3,2455.6,5.66955526]
[1725247333143,2.03565,2456.3,2455.6,2.35950492]
[1725247334019,2.03565,2456.3,2455.7,2.03607]
[1725247334252,3.0,2456.4,2455.8,0.52098802]
[1725247334435,2.2616,2456.7,2455.9,4.4209]
[1725247334643,2.03535,2456.6,2456.0,0.57561305]
[1725247334964,2.03544,2456.5,2456.0,0.08142425]
[1725247335828,2.03544,2456.5,2455.9,2.385]
[1725247336040,3.0,2456.6,2455.6,9.46614]
[1725247336041,2.03565,2456.3,2455.6,9.46614]
[1725247336268,2.03576,2456.1,2455.6,9.7512]
[1725247336466,2.03576,2456.1,2455.6,2.3212]
[1725247336680,2.03583,2456.0,2455.6,2.3212]
[1725247337364,2.03592,2455.9,2455.3,9.46639]
[1725247337526,2.03592,2455.9,2455.4,2.3613]
[1725247337727,2.03576,2456.1,2455.4,4.39758]
[1725247337927,5.03561,2456.3,2455.7,4.39737]
[1725247338162,5.03561,2456.3,2455.7,4.47880441]
[1725247338372,2.03561,2456.3,2455.8,0.08143319]
[1725247338542,2.03561,2456.3,2455.7,4.4788017]
[1725247338745,2.03561,2456.3,2455.7,5.25320503]
[1725247339069,3.42624837,2456.4,2456.0,2.03582]
[1725247339276,0.42624837,2456.4,2456.0,2.03582]
[1725247341988,0.42624837,2456.4,2455.8,4.39722]
[1725247342144,0.42624837,2456.4,2455.8,5.98838737]
[1725247342547,3.42624837,2456.4,2455.9,2.0359]
[1725247342745,0.42624837,2456.4,2455.8,5.98838737]
[1725247342943,0.42624837,2456.4,2455.9,2.03591]
[1725247343780,0.42624837,2456.4,2456.0,2.03582]
[1725247344000,0.42624837,2456.4,2456.0,2.11724158]
[1725247344187,0.42624837,2456.4,2456.1,2.03574]
[1725247344493,0.42624837,2456.4,2456.0,2.11724159]
[1725247344644,0.42624837,2456.4,2456.0,3.0086749]
[1725247344987,0.42624837,2456.4,2456.0,3.09009648]
[1725247346282,0.42624837,2456.4,2456.0,3.09003648]
[1725247346655,0.42624837,2456.4,2456.0,3.09002648]
[1725247346857,0.42624837,2456.4,2456.1,2.03574]
[1725247347257,0.42624837,2456.4,2456.3,4.43568]
[1725247347567,0.42624837,2456.4,2456.3,4.5170942]
[1725247348114,0.42624837,2456.4,2456.3,4.51709467]
[1725247349010,0.42624837,2456.4,2456.3,6.47126]
[1725247350182,0.42624837,2456.4,2456.3,4.43568]
[1725247351272,0.42624837,2456.4,2456.1,2.03572]
[1725247351583,0.42624837,2456.4,2456.2,0.203572]
[1725247351779,0.42624837,2456.4,2456.1,2.03568]
[1725247353698,0.42624837,2456.4,2456.2,0.08141111]
[1725247353986,0.42624837,2456.4,2456.1,2.03568]
[1725247355172,0.42624837,2456.4,2456.2,0.08141619]
[1725247355540,0.42624837,2456.4,2456.1,2.03568]
[1725247355734,0.42624837,2456.4,2456.1,2.83283301]
[1725247357341,0.42624837,2456.4,2456.0,2.2771]
[1725247358831,0.42624837,2456.4,2456.1,0.0814217]
[1725247359130,0.42624837,2456.4,2456.0,4.31292]
[1725247359518,0.42624837,2456.4,2456.1,2.03574]
[1725247359707,0.42624837,2456.4,2456.2,0.52084147]
[1725247360254,0.42624837,2456.4,2456.2,0.43942616]
[1725247360420,0.42624837,2456.4,2456.1,2.03574]
[1725247361194,0.42624837,2456.4,2456.2,0.08141537]
[1725247361857,0.42624837,2456.4,2456.3,2.03558]
[1725247362536,0.42624837,2456.4,2456.0,4.3129]
[1725247363318,0.42624837,2456.4,2456.0,5.11007301]
[1725247363497,0.42624837,2456.4,2455.8,2.03596]
[1725247363901,0.42624837,2456.4,2455.9,2.03591]
[1725247364995,0.42624837,2456.4,2455.8,2.03596]
[1725247368092,0.42624837,2456.4,2455.9,2.0359]
[1725247370450,0.42624837,2456.4,2455.8,2.03596]
[1725247370656,1.7070963,2456.4,2455.8,2.03596]
[1725247370860,0.42624837,2456.4,2455.8,2.03596]
[1725247371560,1.7070963,2456.4,2455.8,2.03596]
[1725247372362,2.3547,2456.1,2455.7,7.43]
[1725247372960,0.42613756,2456.0,2455.5,12.37]
[1725247373186,0.42613756,2456.0,2455.5,4.01493556]
[1725247373388,0.42613756,2456.0,2455.5,6.05114556]
[1725247373899,0.42613756,2456.0,2455.6,0.55]
[1725247374831,0.42613756,2456.0,2455.6,2.58616]
[1725247376504,0.42613756,2456.0,2455.6,0.55]
[1725247380203,0.42613756,2456.0,2455.6,2.51985164]
[1725247382428,0.42613756,2456.0,2455.6,0.55]
[1725247385595,0.42613756,2456.0,2455.4,9.46626]
[1725247385596,2.3418,2455.7,2455.4,7.43]
[1725247385842,2.3418,2455.7,2454.9,4.5293]
[1725247385843,1.61372084,2455.6,2454.9,7.43]
[1725247386040,2.03646,2455.3,2454.9,7.43]
[1725247387855,5.65888793,2455.5,2454.9,7.43]
[1725247387856,7.69518793,2455.5,2454.9,7.43]
[1725247388037,8.80733803,2455.5,2454.9,7.43]
[1725247388244,0.42615389,2455.4,2454.9,7.43]
[1725247388769,2.46248389,2455.4,2454.9,7.43]
[1725247389344,0.42615389,2455.4,2454.9,7.43]
[1725247390313,1.37292308,2455.4,2454.9,7.43]
[1725247390507,3.40927308,2455.4,2454.9,7.43]
[1725247391557,1.37292308,2455.4,2454.7,2.03689]
[1725247391763,1.37292308,2455.4,2454.7,2.03685]
[1725247392058,0.42615389,2455.4,2455.0,2.3867]
[1725247392283,0.42615389,2455.4,2455.3,9.77257774]
[1725247392563,0.42615389,2455.4,2455.3,11.36298003]
[1725247393156,1.28084793,2456.6,2456.1,2.03573]
[1725247393364,3.74499071,2456.9,2456.4,2.03549]
[1725247393365,1.28084793,2456.9,2456.4,2.03549]
[1725247393655,0.4260303,2457.1,2456.5,4.48196155]
[1725247393856,1.28084793,2457.4,2456.8,2.03515]
[1725247394025,4.65292827,2457.7,2457.0,2.035]
[1725247394026,1.28084793,2457.6,2457.0,2.035]
[1725247394227,0.94885697,2457.6,2456.9,2.11645257]
[1725247394544,0.42641349,2457.5,2457.0,2.03498]
[1725247395120,0.48356414,2457.6,2457.0,2.03498]
[1725247395322,3.48356414,2457.6,2457.0,2.03498]
[1725247395550,0.48356414,2457.6,2457.0,2.03498]
[1725247396332,4.28084793,2457.7,2457.0,2.03498]
[1725247396333,3.0,2457.7,2457.0,2.03498]
[1725247396661,0.67442207,2457.6,2457.0,2.03498]
[1725247402283,5.03442,2457.7,2457.3,2.03475]
[1725247402284,3.0,2457.7,2457.3,2.03475]
[1725247402592,3.0,2457.8,2457.3,2.03475]
[1725247402891,3.26018973,2457.9,2457.3,2.03475]
[1725247403189,3.0,2457.8,2457.3,2.03475]
[1725247403405,5.4388,2457.9,2457.3,2.03475]
[1725247404055,7.95661414,2457.9,2456.9,2.03505]
[1725247404264,2.03448,2457.7,2456.9,2.03505]
[1725247404558,5.03448,2457.7,2456.9,2.03505]
[1725247404962,5.03448,2457.7,2457.0,2.11638111]
[1725247405144,5.03448,2457.7,2457.0,2.86798632]
[1725247405978,5.03448,2457.7,2457.1,2.0349]
[1725247407950,5.03448,2457.7,2457.0,0.75160521]
[1725247408287,5.03448,2457.7,2457.0,2.78659521]
[1725247409091,5.03448,2457.7,2457.0,2.78660521]
[1725247410089,0.42602704,2457.6,2457.0,2.78660521]
[1725247410781,0.42602704,2457.6,2457.0,0.75160521]
[1725247410959,0.42602704,2457.6,2457.0,2.78657521]
[1725247412088,0.42602704,2457.6,2457.1,2.51704852]
[1725247415180,0.42602704,2457.6,2457.3,2.03474]
[1725247415499,0.42602704,2457.6,2457.4,2.03466]
[1725247415698,3.0,2457.8,2457.4,2.03466]
[1725247415992,2.4388,2457.9,2457.4,2.03466]
[1725247417577,3.0,2458.0,2457.4,2.03466]
[1725247417775,3.0,2458.0,2457.5,2.03457]
[1725247417980,5.2582,2458.1,2457.5,2.03452]
[1725247418195,5.2582,2458.1,2457.6,2.03449]
[1725247420370,5.2582,2458.1,2457.5,2.03452]
[1725247421354,5.2582,2458.1,2457.3,2.03473]
[1725247421355,8.31586787,2458.1,2457.3,2.03473]
[1725247421695,8.79943201,2458.1,2457.3,2.03473]
[1725247421997,2.03427,2457.9,2457.3,2.03473]
[1725247422396,3.4176402,2457.9,2457.2,2.4162]
[1725247422658,3.4176402,2457.9,2456.9,14.40504]
[1725247422659,5.4143,2457.8,2456.9,4.32664]
[1725247422761,5.4143,2457.8,2456.9,2.03504]
[1725247423609,2.03448,2457.7,2456.9,2.03504]
[1725247423902,2.0345,2457.6,2456.9,2.03504]
[1725247424118,5.0345,2457.6,2456.9,3.414226]
[1725247425602,3.0,2457.6,2457.0,2.03498]
[1725247425776,5.03448,2457.7,2457.0,2.03498]
[1725247425987,5.03448,2457.7,2457.0,2.91120637]
[1725247426176,2.03451,2457.6,2457.0,0.87622637]
[1725247426489,2.03459,2457.5,2456.9,3.414226]
[1725247431891,3.0,2457.6,2457.0,2.03499]
[1725247432096,5.03448,2457.7,2457.0,2.45780307]
[1725247433743,5.03448,2457.7,2457.0,2.3764126]
[1725247434207,2.03452,2457.6,2457.0,0.3414226]
[1725247434395,3.78748182,2457.6,2457.0,2.03498]
[1725247434621,3.0,2457.6,2457.0,2.11637044]
[1725247434824,5.03448,2457.7,2457.1,2.03486]
[1725247435061,3.0,2457.6,2457.1,2.03486]
[1725247435569,5.03448,2457.7,2457.1,2.03486]
[1725247436369,6.02539082,2457.7,2457.1,2.03486]
[1725247437274,7.30623875,2457.7,2457.1,2.03486]
[1725247437475,7.30623875,2457.7,2457.2,2.03481]
[1725247437476,4.28084793,2457.7,2457.2,2.03481]
[1725247437675,3.0,2457.7,2457.2,4.49609602]
[1725247437832,3.0,2457.7,2457.3,2.03472]
[1725247438032,4.70688616,2457.8,2457.3,2.03472]
[1725247438273,1.28084793,2457.6,2457.3,2.03472]
[1725247438478,4.28084793,2457.6,2457.3,2.6878066]
[1725247439273,1.28084793,2457.5,2457.3,2.6878066]
[1725247439437,4.28084793,2457.5,2457.3,2.6878066]
[1725247440390,4.28084793,2457.5,2457.3,2.03472]
[1725247441753,2.13958863,2457.7,2457.3,2.03472]
[1725247441754,1.28084793,2457.7,2457.4,2.03467]
[1725247443825,1.28084793,2457.7,2457.5,2.03458]
[1725247444209,1.28084793,2457.6,2457.5,0.41506833]
[1725247444437,1.28084793,2457.6,2457.3,2.03472]
[1725247444731,1.28084793,2457.7,2457.4,2.03466]
[1725247444933,1.28084793,2457.7,2457.4,2.679588]
[1725247445299,1.28084793,2457.6,2457.4,2.679588]
[1725247445917,1.28084793,2457.7,2457.4,2.679588]
[1725247446323,1.28084793,2457.7,2457.4,0.644928]
[1725247446537,1.28084793,2457.6,2457.2,2.3799]
[1725247446823,1.28084793,2457.3,2457.1,7.43]
[1725247447936,1.28084793,2457.4,2457.1,7.43]
[1725247448723,1.28084793,2457.4,2457.2,2.2738]
[1725247450059,1.28084793,2457.4,2457.1,10.614842]
[1725247451039,1.28084793,2457.4,2457.1,1.150002]
[1725247451238,3.31552793,2457.4,2456.9,2.3289]
[1725247451470,1.28084793,2457.3,2456.9,2.3289]
[1725247451766,1.28084793,2457.3,2457.0,2.035]
[1725247452063,1.28084793,2457.4,2457.1,0.639898]
[1725247452627,1.28084793,2457.3,2457.1,0.639898]
[1725247452829,1.28084793,2457.3,2456.9,4.36398]
[1725247453925,1.28084793,2457.4,2457.2,2.0348]
[1725247454157,1.28084793,2457.4,2457.3,4.59923]
[1725247454349,1.28084793,2457.5,2457.3,4.59923]
[1725247454657,1.28084793,2457.6,2457.3,4.68061153]
[1725247457770,1.28084793,2457.6,2457.3,4.59923]
[1725247458659,1.28084793,2457.6,2457.3,2.56448]
[1725247458847,1.28084793,2457.5,2457.3,2.361]
[1725247459362,1.28084793,2457.6,2457.3,2.361]
[1725247460936,1.28084793,2457.5,2457.2,2.03477]
[1725247461369,1.28084793,2457.5,2457.2,2.686523]
[1725247461871,1.28084793,2457.6,2457.2,2.686523]
[1725247462370,1.28084793,2457.6,2457.2,4.721293]
[1725247462731,1.28084793,2457.6,2457.2,2.686523]
[1725247464961,1.28084793,2457.6,2457.4,2.03465]
[1725247465181,1.28084793,2457.7,2457.5,2.4497]
[1725247465470,0.42603823,2457.8,2457.7,4.06884]
[1725247465670,1.28084793,2458.0,2457.7,2.03442]
[1725247465900,1.28084793,2458.0,2457.8,2.32540588]
[1725247466047,1.28084793,2458.1,2457.8,2.40677274]
[1725247466374,1.28084793,2458.1,2457.9,4.49864]
[1725247466687,1.28084793,2458.1,2457.9,5.51990332]
[1725247466886,1.28084793,2458.1,2458.0,2.03417]
[1725247467089,1.70988071,2458.2,2458.0,2.03417]
[1725247467090,1.28084793,2458.2,2458.0,2.03417]
[1725247467259,1.28084793,2458.3,2458.0,2.03417]
[1725247467439,1.28084793,2458.3,2458.0,2.82682927]
[1725247467781,1.28084793,2458.4,2458.0,2.82682927]
[1725247468141,1.28084793,2458.5,2458.0,2.82682927]
[1725247468349,4.28084793,2458.5,2458.0,2.82682927]
[1725247470844,3.0,2458.5,2458.0,2.82682927]
[1725247471153,4.28084793,2458.6,2458.0,2.82682927]
[1725247471356,4.28084793,2458.6,2458.1,0.63938561]
[1725247471559,1.28084793,2458.5,2458.1,0.63938561]
[1725247471870,4.28084793,2458.5,2458.0,2.03417]
[1725247472071,4.28084793,2458.5,2458.0,2.11552778]
[1725247472402,4.28084793,2458.6,2458.0,2.11552778]
[1725247473395,4.28084793,2458.6,2458.0,2.87907889]
[1725247475018,4.28084793,2458.6,2457.9,3.48566332]
[1725247475019,1.28084793,2458.4,2457.9,3.48566332]
[1725247475162,3.0,2458.4,2457.9,2.4644]
[1725247476410,4.28084793,2458.4,2457.9,2.4644]
[1725247476710,6.31469793,2458.4,2457.9,2.4644]
[1725247476870,5.03385,2458.4,2457.9,2.4644]
[1725247477072,4.28084793,2458.4,2457.9,2.4644]
[1725247477415,3.0,2458.4,2457.9,2.4644]
[1725247479183,5.03384,2458.4,2457.9,2.4644]
[1725247480259,6.31468793,2458.4,2457.9,2.4644]
[1725247480750,2.03393,2458.3,2457.9,2.4644]
[1725247481051,2.03409,2458.1,2457.7,2.3271]
[1725247481551,5.03409,2458.1,2457.7,2.3271]
[1725247482275,4.37425729,2458.1,2457.4,2.3271]
[1725247482551,3.0,2458.1,2457.9,2.3271]
[1725247482753,0.42604209,2458.3,2458.0,0.436137]
[1725247482926,0.42604209,2458.3,2458.0,0.51749793]
[1725247483128,0.42604209,2458.3,2458.0,0.436137]
[1725247483718,0.42604209,2458.3,2457.9,2.3271]
[1725247488180,0.42604209,2458.3,2457.9,4.36134]
[1725247488353,0.42604209,2458.3,2457.9,2.3271]
[1725247489060,0.42604209,2458.3,2458.0,0.08136291]
[1725247489448,0.42604209,2458.3,2458.0,2.0341]
[1725247489639,0.42604209,2458.3,2458.0,2.673647]
[1725247490964,0.42604209,2458.3,2458.0,0.639547]
[1725247491181,0.42604209,2458.3,2457.9,2.3271]
[1725247491677,3.42604209,2458.3,2457.9,2.3271]
[1725247491841,2.03401,2458.2,2457.7,7.43]
[1725247492169,2.03423,2458.0,2457.3,4.51194]
[1725247492500,2.03423,2458.0,2457.3,2.4772]
[1725247492501,3.31507793,2458.0,2457.3,2.4772]
[1725247492787,3.87217432,2458.0,2457.3,2.4772]
[1725247493165,2.3944,2457.9,2457.3,2.4772]
[1725247493377,2.03434,2457.8,2457.3,2.4772]
[1725247495909,3.67524793,2457.9,2457.3,2.4772]
[1725247496270,1.28084793,2457.9,2457.3,2.4772]
[1725247496617,3.0,2457.9,2457.3,2.928403]
[1725247497202,0.42598749,2457.8,2457.3,2.928403]
[1725247498422,6.31510793,2457.9,2457.3,2.4772]
[1725247499179,1.28084793,2457.8,2457.3,2.4772]
[1725247499775,3.31518793,2457.8,2457.3,2.4772]
[1725247501221,3.31518793,2457.8,2456.9,10.73575176]
[1725247501222,2.03451,2457.6,2456.9,10.73575176]
[1725247501420,2.03451,2457.6,2457.0,3.87047518]
[1725247501718,1.28084793,2457.7,2457.0,3.87047518]
[1725247501928,3.0,2457.7,2457.1,2.57828695]
[1725247502219,3.0,2457.7,2457.2,0.39518621]
[1725247502677,4.28084793,2457.7,2457.2,0.39518621]
[1725247502877,6.31532793,2457.7,2457.1,2.4969]
[1725247503179,3.31537793,2457.6,2457.1,2.4969]
[1725247503705,2.03453,2457.6,2457.1,2.4969]
[1725247503902,3.31537793,2457.6,2457.1,2.4969]
[1725247504882,2.03459,2457.5,2457.1,2.4969]
[1725247505113,3.31537793,2457.6,2457.1,2.4969]
[1725247505616,3.31537793,2457.6,2457.1,3.76471614]
[1725247505921,2.03453,2457.6,2457.1,3.76471614]
[1725247506127,2.03458,2457.5,2457.1,2.4969]
[1725247507798,2.03467,2457.4,2457.1,2.4969]
[1725247507998,2.03467,2457.4,2456.9,11.10458624]
[1725247508320,2.03467,2457.4,2457.0,0.88076862]
[1725247508525,2.03475,2457.3,2456.9,9.7269]
[1725247508733,1.28084793,2457.6,2456.6,2.2969]
[1725247508734,2.03492,2457.1,2456.6,2.2969]
[1725247508896,2.03509,2456.9,2456.6,2.2969]
[1725247509136,1.28084793,2457.3,2456.7,2.51870867]
[1725247509447,1.28084793,2457.5,2457.0,1.37768624]
[1725247509732,4.70988071,2457.6,2457.0,1.37768624]
[1725247509733,3.0,2457.6,2457.1,2.4373]
[1725247510330,3.0,2457.6,2457.1,3.02229862]
[1725247510503,5.03451,2457.6,2457.1,3.02229862]
[1725247511130,2.03461,2457.5,2457.1,2.4373]
[1725247512332,5.51807414,2457.6,2457.1,2.4373]
[1725247513513,3.0,2457.6,2457.1,2.4373]
[1725247513740,3.0,2457.7,2457.1,2.4373]
[1725247513942,3.0,2457.7,2457.0,3.41260624]
[1725247513943,3.0,2457.7,2457.3,2.4373]
[1725247514151,0.4261135,2457.5,2457.3,2.4373]
[1725247516064,0.4261135,2457.5,2457.3,2.51868469]
[1725247517115,0.4261135,2457.5,2457.4,2.03467]
[1725247520459,0.4261135,2457.5,2457.4,8.42520688]
[1725247520676,0.4261135,2457.5,2457.4,9.26772757]
[1725247520972,2.13350968,2458.5,2457.9,2.3468]
[1725247520973,1.70988071,2458.5,2457.9,2.3468]
[1725247521270,0.42606918,2458.2,2457.9,2.3468]
[1725247521782,0.42606918,2458.2,2457.7,2.3065]
[1725247522139,2.86376918,2458.2,2457.5,7.43]
[1725247522379,2.86376918,2458.2,2457.5,9.7365]
[1725247522380,2.03423,2458.0,2457.5,9.7365]
[1725247522544,2.03423,2458.0,2457.5,2.3065]
[1725247522870,4.06848,2458.0,2457.5,2.3065]
[1725247523076,2.03425,2457.9,2457.3,2.3372]
[1725247523248,2.03425,2457.9,2457.3,3.42144362]
[1725247523546,2.03423,2458.0,2457.3,3.42144362]
[1725247523943,3.41208624,2457.8,2456.9,2.3372]
[1725247524135,4.06915,2457.6,2456.9,2.3372]
[1725247524336,4.91383362,2457.6,2456.9,2.3372]
[1725247524749,2.87925362,2457.6,2456.9,2.3372]
[1725247525733,2.03459,2457.5,2456.9,2.3372]
[1725247526135,2.03475,2457.3,2456.9,2.3372]
[1725247526382,2.03469,2457.4,2456.9,2.3372]
[1725247526561,0.444769,2457.3,2456.6,2.4572]
[1725247527080,0.444769,2457.3,2456.7,1.37768624]
[1725247527249,2.03469,2457.4,2456.7,1.37768624]
[1725247529153,2.03475,2457.3,2456.7,1.37768624]
[1725247531645,2.03484,2457.2,2456.6,2.4572]
[1725247531845,0.706959,2457.2,2456.6,2.4572]
[1725247532144,2.03475,2457.3,2456.6,2.4572]
[1725247532669,2.03475,2457.3,2456.6,2.53860306]
[1725247533785,2.03475,2457.3,2456.6,2.4572]
[1725247533958,2.03475,2457.3,2456.7,1.37768624]
[1725247534287,2.02401828,2457.3,2456.7,1.37768624]
[1725247534486,3.0,2457.4,2456.9,3.83418624]
[1725247534662,3.0,2457.6,2457.0,4.4783194]
[1725247534980,5.03443,2457.7,2457.0,4.4783194]
[1725247535185,6.74431071,2457.7,2457.0,5.32243396]
[1725247535975,5.03443,2457.7,2457.0,5.32243396]
[1725247536158,6.74431071,2457.7,2457.0,5.32243396]
[1725247536548,0.42611713,2457.6,2457.0,5.32243396]
[1725247536748,0.42611713,2457.6,2457.1,0.67001202]
[1725247537497,0.42611713,2457.6,2457.2,2.2545]
[1725247537703,4.17051784,2457.6,2457.2,2.2545]
[1725247537993,3.0,2457.5,2457.0,2.2545]
[1725247540471,6.74450071,2457.5,2456.7,8.80768624]
[1725247540769,2.03493,2457.1,2456.7,7.43]
[1725247542296,3.74470071,2457.3,2456.7,7.43]
[1725247543195,3.74470071,2457.3,2456.6,5.70096624]
[1725247543596,3.74470071,2457.3,2456.6,3.66568624]
[1725247543895,2.03497,2457.1,2456.6,2.288]
[1725247544405,2.03505,2457.0,2456.6,2.288]
[1725247544581,2.03497,2457.1,2456.6,2.288]
[1725247545605,4.06996,2457.1,2456.6,2.288]
[1725247546685,2.03497,2457.1,2456.6,2.288]
[1725247546856,2.03497,2457.1,2456.7,0.2369409]
[1725247551772,0.42616741,2457.0,2456.7,0.2369409]
[1725247553012,2.28741779,2457.0,2456.4,2.3795]
[1725247553193,2.0353,2456.7,2456.2,2.3795]
[1725247553904,4.4598,2456.7,2456.0,2.4838]
[1725247554105,2.03547,2456.5,2456.0,2.4838]
[1725247554285,2.03555,2456.4,2455.8,2.4838]
[1725247554486,2.03558,2456.3,2455.8,2.4838]
[1725247554709,2.03558,2456.3,2455.6,12.37]
[1725247554710,4.46017,2456.2,2455.6,12.37]
[1725247554912,2.03591,2455.9,2455.5,2.4838]
[1725247555070,2.03591,2455.9,2455.2,2.4838]
[1725247555413,2.03591,2455.9,2455.2,5.05360462]
[1725247556038,5.03591,2455.9,2455.2,5.05360462]
[1725247556190,2.03599,2455.8,2455.2,2.4838]
[1725247556610,3.0,2456.0,2455.2,2.4838]
[1725247556611,5.03586,2456.0,2455.2,2.4838]
[1725247556783,5.03586,2456.0,2455.2,5.24704243]
[1725247557729,3.0,2456.0,2455.2,7.28353243]
[1725247557929,5.03582,2456.1,2455.2,7.28353243]
[1725247558415,5.03582,2456.1,2455.3,2.03639]
[1725247558620,3.0,2456.1,2455.4,3.21214324]
[1725247559988,3.0,2456.1,2455.4,5.24846324]
[1725247561039,5.03576,2456.1,2455.4,3.21214324]
[1725247561185,2.03591,2455.9,2455.2,2.3607]
[1725247561380,2.2521,2455.8,2455.2,2.3607]
[1725247561723,7.28811,2455.8,2455.2,2.3607]
[1725247562016,2.03608,2455.7,2455.0,4.39735]
[1725247562231,2.03622,2455.6,2455.0,2.3607]
[1725247562517,2.539872,2455.5,2454.9,7.43]
[1725247562675,2.03625,2455.5,2454.9,7.43]
[1725247564409,5.03608,2455.7,2454.9,7.51146716]
[1725247564581,5.03608,2455.7,2454.9,7.43]
[1725247564780,5.03608,2455.7,2454.9,10.99104343]
[1725247565497,2.03616,2455.6,2454.9,10.99104343]
[1725247567023,2.03616,2455.6,2454.9,3.56104343]
[1725247567398,3.0,2455.7,2455.1,2.4473]
[1725247568988,3.0,2455.7,2455.2,2.03643]
[1725247569184,5.46202999,2456.0,2455.3,0.448373]
[1725247570326,2.03593,2455.9,2455.3,0.448373]
[1725247570543,2.03599,2455.8,2455.1,4.48387]
[1725247571024,3.0,2455.8,2455.2,2.03649]
[1725247571327,3.0,2455.8,2455.3,0.652036]
[1725247571633,5.03593,2455.9,2455.3,0.652036]
[1725247572181,7.07192,2455.9,2455.3,0.652036]
[1725247572398,7.07192,2455.9,2455.2,2.03649]
[1725247572601,2.036,2455.8,2455.1,4.48386]
[1725247572801,5.036,2455.8,2455.2,0.65205]
[1725247578223,3.0,2455.8,2455.2,0.65205]
[1725247579152,5.036,2455.8,2455.2,0.65205]
[1725247580445,2.03616,2455.6,2455.1,2.4473]
[1725247580750,2.03616,2455.6,2454.9,9.8561]
[1725247580956,2.03616,2455.6,2454.9,11.249072]
[1725247581530,2.03616,2455.6,2454.9,9.8561]
[1725247581531,2.2968,2455.5,2454.9,9.8561]
[1725247581716,5.2968,2455.5,2454.6,2.2682]
[1725247581940,2.03677,2454.9,2454.4,2.2682]
[1725247582281,2.03677,2454.9,2454.0,7.43]
[1725247582282,4.33289,2455.7,2454.8,2.2682]
[1725247582463,4.33289,2455.7,2455.0,2.03664]
[1725247582464,0.42624176,2455.6,2455.0,2.03664]
[1725247582613,3.42624176,2455.6,2455.0,2.11809793]
[1725247582812,3.42624176,2455.6,2455.0,2.03664]
[1725247583045,3.42624176,2455.6,2455.0,2.69348]
[1725247584465,0.42624176,2455.6,2455.1,2.38815787]
[1725247584615,0.42624176,2455.6,2455.2,2.03642]
[1725247586752,3.0,2455.8,2455.2,2.03642]
[1725247587057,3.0,2455.8,2455.3,2.470712]
[1725247587258,5.4899,2455.9,2455.3,0.434312]
[1725247590256,5.4899,2455.9,2455.3,0.51576332]
[1725247590257,3.0,2455.9,2455.3,0.51576332]
[1725247590560,3.42619684,2456.1,2455.4,4.41236]
[1725247590859,5.46194684,2456.1,2455.4,4.41236]
[1725247593363,3.42619684,2456.1,2455.4,4.41236]
[1725247593664,3.42619684,2456.1,2455.5,0.44938089]
[1725247594158,5.46195684,2456.1,2455.4,4.41236]
[1725247596430,5.46195684,2456.1,2455.4,6.44862]
[1725247596629,3.42619684,2456.1,2455.5,2.03623]
[1725247598072,3.42619684,2456.1,2455.6,2.03615]
[1725247598245,5.13607755,2456.1,2455.6,2.03615]
[1725247599231,1.70988071,2455.9,2455.6,2.03615]
[1725247599475,4.70988071,2455.9,2455.6,2.03615]
[1725247600284,6.03333071,2455.8,2455.2,2.03646]
[1725247600440,4.70988071,2455.7,2455.2,2.03646]
[1725247601561,1.70988071,2455.6,2455.2,2.03646]
[1725247601763,3.0,2455.7,2455.2,2.03646]
[1725247601764,4.70988071,2455.7,2455.2,2.03646]
[1725247602976,4.70988071,2455.7,2455.2,3.489083]
[1725247603875,4.70988071,2455.7,2455.3,2.3904]
[1725247604245,1.70988071,2455.7,2455.3,2.3904]
[1725247604779,1.70988071,2455.7,2455.4,2.03632]
[1725247605879,1.70988071,2455.7,2455.3,2.3904]
[1725247606265,2.64067119,2455.7,2455.3,2.3904]
[1725247606448,2.64067119,2455.7,2455.0,11.50355235]
[1725247606449,1.70988071,2455.6,2455.1,2.3904]
[1725247607390,2.91913913,2455.6,2455.0,7.43]
[1725247607680,3.74640071,2455.2,2454.5,11.85746]
[1725247607891,3.74640071,2455.2,2454.6,2.03698]
[1725247609067,2.03652,2455.2,2454.6,2.03698]
[1725247609282,5.03652,2455.2,2454.6,2.03698]
[1725247609613,6.74640071,2455.2,2454.6,3.56443824]
[1725247609754,6.74640071,2455.2,2454.5,9.8204]
[1725247609954,2.28,2455.1,2454.5,9.8204]
[1725247610305,3.74661071,2455.0,2454.5,7.43]
[1725247610503,4.70988071,2455.1,2454.6,4.52996]
[1725247610703,1.70988071,2455.2,2454.7,2.493]
[1725247610905,1.70988071,2455.6,2455.2,2.3448]
[1725247611189,4.12828071,2455.7,2455.1,2.03657]
[1725247611396,4.64194629,2455.7,2455.1,2.03657]
[1725247611584,4.12828071,2455.7,2455.1,2.03657]
[1725247611952,4.12828071,2455.7,2455.0,2.3448]
[1725247612157,1.70988071,2455.7,2455.4,2.3448]